bitfinex/quotes_BTCUSD_20240911
["timestamp","ask_amount","ask_price","bid_price","bid_amount"]
[1726065214103,2.36751155,55977.0,55976.0,0.00163]
[1726065214596,2.42951155,55977.0,55976.0,0.00163]
[1726065214839,2.6056811,55977.0,55976.0,0.00163]
[1726065215336,2.19121497,55968.0,55957.0,0.03579]
[1726065215586,2.19121497,55968.0,55951.0,0.0035125]
[1726065215587,3.12616197,55968.0,55951.0,0.0035125]
[1726065215842,3.18616197,55968.0,55951.0,0.0035125]
[1726065216083,3.29011328,55968.0,55951.0,0.0035125]
[1726065216340,3.29211328,55968.0,55951.0,0.0035125]
[1726065216568,2.93476628,55968.0,55951.0,0.0035125]
[1726065216803,2.85684167,55968.0,55951.0,0.0035125]
[1726065217528,2.85684167,55968.0,55955.0,0.357424]
[1726065217529,2.05214767,55968.0,55955.0,0.357424]
[1726065217758,2.05214767,55968.0,55952.0,0.357443]
[1726065217759,2.40949467,55968.0,55952.0,0.357443]
[1726065217998,2.06384211,55968.0,55959.0,0.178702]
[1726065218232,2.06384211,55968.0,55961.0,0.178695]
[1726065218720,2.06384211,55968.0,55959.0,0.1787]
[1726065218951,2.06384211,55968.0,55960.0,0.178698]
[1726065219412,2.06384211,55968.0,55961.0,0.178694]
[1726065219868,2.06384211,55968.0,55959.0,0.1787]
[1726065220102,1.14732211,55968.0,55961.0,0.357388]
[1726065220327,1.14732211,55968.0,55962.0,0.178691]
[1726065220328,1.68334211,55968.0,55962.0,0.178691]
[1726065220547,0.64732211,55968.0,55961.0,0.357388]
[1726065220793,0.60760097,55968.0,55967.0,0.0243568]
[1726065221052,0.60760097,55968.0,55967.0,0.5603858]
[1726065221053,0.01050097,55968.0,55967.0,0.5603858]
[1726065221347,0.1917,55976.0,55975.0,0.178651]
[1726065221348,0.01050097,55976.0,55975.0,0.178651]
[1726065221575,0.18738294,55970.0,55969.0,0.05879]
[1726065221795,0.00871594,55970.0,55969.0,0.05879]
[1726065222050,0.00871594,55970.0,55969.0,0.23746]
[1726065222306,0.01050097,55970.0,55969.0,0.5948]
[1726065222562,0.01050097,55970.0,55969.0,0.05879]
[1726065222795,0.01050097,55970.0,55969.0,0.20167]
[1726065223507,0.01050097,55970.0,55967.0,0.0013568]
[1726065223508,0.01050097,55969.0,55967.0,0.0013568]
[1726065223751,1.30386797,55968.0,55967.0,0.0013568]
[1726065223993,0.41050097,55968.0,55967.0,0.0013568]
[1726065224218,0.01050097,55968.0,55967.0,0.5603858]
[1726065224703,0.01050097,55968.0,55967.0,0.0243568]
[1726065224953,0.23917397,55968.0,55967.0,0.0013568]
[1726065225196,0.06050097,55968.0,55967.0,0.0013568]
[1726065225685,0.59652097,55968.0,55967.0,0.0013568]
[1726065226158,1.69241497,55968.0,55967.0,0.0013568]
[1726065226393,2.05388452,55968.0,55967.0,0.0013568]
[1726065226648,2.50123152,55968.0,55967.0,0.0013568]
[1726065226895,2.50123152,55968.0,55967.0,0.0029888]
[1726065227184,2.50123152,55968.0,55951.0,0.0035125]
[1726065227185,2.38522297,55952.0,55951.0,0.0035125]
[1726065227432,2.77467197,55952.0,55951.0,0.0035125]
[1726065227662,3.19212097,55952.0,55951.0,0.0035125]
[1726065227892,2.86270425,55952.0,55951.0,0.0035125]
[1726065228583,3.34962253,55952.0,55951.0,0.0035125]
[1726065229580,3.34762253,55952.0,55951.0,0.0035125]
[1726065229834,2.93017353,55952.0,55951.0,0.0035125]
[1726065230110,3.28762253,55952.0,55951.0,0.0035125]
[1726065230589,3.34962253,55952.0,55951.0,0.0035125]
[1726065230846,3.32159025,55952.0,55951.0,0.0035125]
[1726065231086,3.67903925,55952.0,55951.0,0.0035125]
[1726065231305,3.8552088,55952.0,55951.0,0.0035125]
[1726065232296,3.8552088,55952.0,55935.0,0.0035125]
[1726065232297,2.16183797,55940.0,55935.0,0.0035125]
[1726065232533,1.17737797,55936.0,55935.0,0.0035125]
[1726065232778,1.08927597,55936.0,55935.0,0.0035125]
[1726065233217,1.44682697,55936.0,55935.0,0.0035125]
[1726065233464,0.91050097,55936.0,55935.0,0.0035125]
[1726065233968,0.93853975,55936.0,55935.0,0.0035125]
[1726065234452,1.12897767,55936.0,55935.0,0.0035125]
[1726065234693,0.95020267,55936.0,55935.0,0.0035125]
[1726065234924,0.05020267,55936.0,55935.0,0.1822905]
[1726065235391,0.02982381,55936.0,55935.0,0.65758921]
[1726065235614,0.03428996,55936.0,55935.0,1.01514621]
[1726065235841,0.02803878,55936.0,55935.0,1.8671615]
[1726065236069,0.02803878,55936.0,55935.0,2.70025345]
[1726065236312,0.02803878,55936.0,55935.0,2.876423]
[1726065236566,0.02803878,55936.0,55935.0,2.73604345]
[1726065237011,0.05607058,55936.0,55935.0,2.73604345]
[1726065237719,0.05607058,55936.0,55935.0,2.73625842]
[1726065237976,0.05607058,55936.0,55935.0,3.12381542]
[1726065238206,0.05607058,55936.0,55935.0,3.29998497]
[1726065238423,0.05607058,55936.0,55935.0,2.94242797]
[1726065238650,0.05607058,55936.0,55935.0,2.2605085]
[1726065239587,0.05607058,55936.0,55935.0,1.9029515]
[1726065239856,0.05607058,55936.0,55935.0,1.5223945]
[1726065240088,0.05607058,55936.0,55935.0,0.6164805]
[1726065240089,0.06657155,55936.0,55935.0,0.6164805]
[1726065240364,0.06806662,55936.0,55935.0,0.3984915]
[1726065240609,0.56730777,55936.0,55935.0,0.0409345]
[1726065240820,1.48030977,55936.0,55935.0,0.0409345]
[1726065241050,1.83786077,55936.0,55935.0,0.0409345]
[1726065241309,2.01403032,55936.0,55935.0,0.0409345]
[1726065241570,3.35578593,55936.0,55935.0,0.0051445]
[1726065241847,3.35778593,55936.0,55935.0,0.0051445]
[1726065242092,3.00778593,55936.0,55935.0,0.0051445]
[1726065242782,2.47206538,55936.0,55935.0,0.0051445]
[1726065243002,2.41206538,55936.0,55935.0,0.0051445]
[1726065243231,2.44010734,55936.0,55935.0,0.0051445]
[1726065243492,2.50010734,55936.0,55935.0,0.0051445]
[1726065243739,2.47010734,55936.0,55935.0,0.0051445]
[1726065243962,3.03582789,55936.0,55935.0,0.0051445]
[1726065244212,3.03582789,55936.0,55934.0,0.001632]
[1726065244213,1.71150697,55935.0,55934.0,0.001632]
[1726065244459,4.35820697,55935.0,55934.0,0.001632]
[1726065244956,0.22131097,55925.0,55921.0,0.001636]
[1726065245197,1.16335568,55925.0,55921.0,0.001636]
[1726065245491,1.48897668,55925.0,55921.0,0.001636]
[1726065245714,1.54902283,55925.0,55921.0,0.001636]
[1726065245944,2.33927222,55925.0,55921.0,0.001636]
[1726065246171,1.72934097,55922.0,55921.0,0.001636]
[1726065246397,2.40655477,55922.0,55921.0,0.001636]
[1726065246876,2.04891477,55922.0,55921.0,0.001636]
[1726065248501,2.40655477,55922.0,55921.0,0.001636]
[1726065248729,2.04891477,55922.0,55921.0,0.001636]
[1726065248956,1.86354097,55922.0,55921.0,0.001636]
[1726065249728,1.86554097,55922.0,55921.0,0.001636]
[1726065250200,1.89554097,55922.0,55921.0,0.001636]
[1726065250459,1.96640025,55922.0,55921.0,0.001636]
[1726065250698,2.10171052,55922.0,55921.0,0.001636]
[1726065251192,2.45935052,55922.0,55921.0,0.001636]
[1726065251651,4.230226,55922.0,55921.0,0.001636]
[1726065251886,1.54846497,55921.0,55915.0,0.00163]
[1726065252110,0.99663297,55920.0,55915.0,0.00163]
[1726065252339,2.6836833,55920.0,55915.0,0.00163]
[1726065253021,2.6816833,55920.0,55915.0,0.00163]
[1726065253986,1.54677415,55920.0,55916.0,0.178838]
[1726065254228,1.54677415,55920.0,55915.0,0.180471]
[1726065254491,1.54677415,55920.0,55915.0,0.180469]
[1726065254759,1.54677415,55920.0,55919.0,0.0051445]
[1726065255974,2.7959027,55920.0,55919.0,0.0051445]
[1726065256195,2.8259027,55920.0,55919.0,0.0051445]
[1726065256430,2.4382497,55920.0,55919.0,0.0051445]
[1726065256681,1.7229437,55920.0,55919.0,0.0051445]
[1726065256927,2.4382497,55920.0,55919.0,0.0051445]
[1726065257202,2.8259027,55920.0,55919.0,0.0051445]
[1726065257453,3.8051557,55920.0,55919.0,0.0051445]
[1726065257697,3.8031557,55920.0,55919.0,0.0042076]
[1726065257920,3.4455027,55920.0,55919.0,0.0042076]
[1726065258385,3.0080027,55920.0,55919.0,0.0042076]
[1726065258851,3.4276557,55920.0,55919.0,0.0042076]
[1726065259136,3.88501498,55920.0,55919.0,0.0042076]
[1726065259366,3.0400027,55920.0,55919.0,0.0042076]
[1726065260803,3.82296513,55920.0,55919.0,0.0042076]
[1726065261044,3.78210585,55920.0,55919.0,0.0042076]
[1726065262304,3.78210585,55920.0,55915.0,0.00163]
[1726065262305,1.71205597,55916.0,55915.0,0.00163]
[1726065262553,1.71205597,55916.0,55911.0,0.00163]
[1726065262554,0.90501797,55896.0,55890.0,0.3762]
[1726065263008,1.26282497,55896.0,55890.0,0.3762]
[1726065263528,0.90501797,55896.0,55890.0,0.3762]
[1726065263775,0.01050097,55896.0,55890.0,0.3762]
[1726065264013,0.96990389,55896.0,55890.0,0.3762]
[1726065264475,1.35771089,55896.0,55890.0,0.3762]
[1726065264706,1.36900327,55896.0,55890.0,0.3762]
[1726065264936,1.33900327,55896.0,55890.0,0.3818]
[1726065265194,1.36900327,55896.0,55890.0,0.3818]
[1726065265441,1.36900327,55896.0,55878.0,0.0049039]
[1726065265442,1.56930327,55896.0,55878.0,0.0049039]
[1726065265670,1.56930327,55896.0,55880.0,0.3851]
[1726065265671,1.62930327,55896.0,55880.0,0.3851]
[1726065265905,1.62730327,55896.0,55880.0,0.3851]
[1726065266134,1.98711027,55896.0,55880.0,0.3851]
[1726065266387,2.02796955,55896.0,55880.0,0.3851]
[1726065266615,1.98511027,55896.0,55880.0,0.3851]
[1726065267098,1.98511027,55896.0,55878.0,0.0049039]
[1726065267099,1.04119627,55896.0,55893.0,0.3934079]
[1726065267335,1.00436787,55896.0,55893.0,0.3934079]
[1726065267817,0.97436787,55896.0,55893.0,0.3934079]
[1726065268292,0.22875387,55896.0,55893.0,0.3934079]
[1726065268523,0.94436787,55896.0,55893.0,0.3934079]
[1726065268784,0.32319066,55896.0,55893.0,0.3934079]
[1726065269027,0.04985087,55896.0,55893.0,0.3934079]
[1726065269258,0.04985087,55896.0,55894.0,0.178909]
[1726065269491,0.58656087,55896.0,55893.0,0.3934079]
[1726065269713,0.94436787,55896.0,55893.0,0.3934079]
[1726065270909,0.94436787,55896.0,55893.0,0.0049079]
[1726065270910,0.91631035,55896.0,55893.0,0.0049079]
[1726065271140,1.27411735,55896.0,55893.0,0.0049079]
[1726065271617,1.68172909,55896.0,55893.0,0.0049079]
[1726065272311,1.40172909,55896.0,55893.0,0.0049079]
[1726065272555,0.91631035,55896.0,55893.0,0.4129079]
[1726065272780,0.20069635,55896.0,55893.0,0.4129079]
[1726065273001,0.55850335,55896.0,55893.0,0.0049079]
[1726065273232,1.30411735,55896.0,55893.0,0.0049079]
[1726065273489,0.99505097,55894.0,55893.0,0.0049079]
[1726065273726,1.71069097,55894.0,55893.0,0.0049079]
[1726065273955,1.35287097,55894.0,55893.0,0.0049079]
[1726065274705,1.26287097,55894.0,55893.0,0.0049079]
[1726065274939,1.46452465,55894.0,55893.0,0.0049079]
[1726065275421,2.2138662,55894.0,55893.0,0.0049079]
[1726065275422,2.2158662,55894.0,55893.0,0.0049079]
[1726065275899,1.65088897,55887.0,55886.0,0.0021166]
[1726065276123,1.65288897,55887.0,55886.0,0.0021166]
[1726065276371,1.65288897,55887.0,55878.0,0.0049039]
[1726065276372,1.29320697,55879.0,55878.0,0.0049039]
[1726065277334,1.29520697,55879.0,55878.0,0.0049039]
[1726065277576,0.90529097,55879.0,55878.0,0.0049039]
[1726065277821,1.19028657,55879.0,55878.0,0.0049039]
[1726065278044,1.2183556,55879.0,55878.0,0.0049039]
[1726065278279,1.3521647,55879.0,55878.0,0.0049039]
[1726065278721,0.87222004,55879.0,55878.0,0.0049039]
[1726065279176,1.58805204,55879.0,55878.0,0.0049039]
[1726065279418,1.23013604,55879.0,55878.0,0.0049039]
[1726065280598,0.33534604,55879.0,55878.0,0.3850039]
[1726065280827,0.30727701,55879.0,55878.0,0.5821039]
[1726065281042,0.30727701,55879.0,55878.0,0.3850039]
[1726065281043,1.23560161,55879.0,55878.0,0.3850039]
[1726065281306,0.02049638,55879.0,55878.0,0.5639649]
[1726065281562,0.02049638,55879.0,55878.0,0.9218869]
[1726065281563,0.00871594,55879.0,55878.0,0.9218869]
[1726065281794,0.00871594,55879.0,55878.0,0.5639649]
[1726065282013,0.00871594,55879.0,55878.0,0.9218869]
[1726065282671,0.00871594,55879.0,55878.0,0.5639649]
[1726065283150,0.00871594,55879.0,55878.0,1.2798089]
[1726065283380,0.00871594,55879.0,55878.0,1.3028089]
[1726065283592,0.00871594,55879.0,55878.0,0.9448869]
[1726065283820,0.03678137,55879.0,55878.0,1.4832089]
[1726065284302,0.03431661,55879.0,55878.0,1.4832089]
[1726065284986,0.03431661,55879.0,55878.0,1.8411309]
[1726065285456,0.03431661,55879.0,55878.0,1.4832089]
[1726065286340,0.03431661,55879.0,55878.0,1.8406309]
[1726065287014,0.03431661,55879.0,55878.0,1.4827089]
[1726065287521,0.21573937,55879.0,55878.0,0.5879039]
[1726065287736,0.03678137,55879.0,55878.0,0.7438649]
[1726065287946,0.03678137,55879.0,55878.0,1.1017869]
[1726065288386,0.03678137,55879.0,55878.0,1.4597089]
[1726065288387,0.0385664,55879.0,55878.0,1.4597089]
[1726065288610,0.03431661,55879.0,55878.0,1.4597089]
[1726065288866,0.03431661,55879.0,55878.0,1.4827089]
[1726065289317,0.03431661,55879.0,55878.0,1.1247869]
[1726065289545,0.03431661,55879.0,55878.0,1.4827089]
[1726065289809,0.03431661,55879.0,55878.0,1.8406309]
[1726065290037,0.03431661,55879.0,55878.0,1.4827089]
[1726065290480,0.03431661,55879.0,55878.0,1.5184989]
[1726065290765,0.00625118,55879.0,55878.0,1.5184989]
[1726065290999,0.00625118,55879.0,55878.0,1.8764209]
[1726065291661,0.00625118,55879.0,55878.0,1.1605769]
[1726065292380,0.00871594,55879.0,55878.0,1.1247869]
[1726065292631,0.59211589,55879.0,55878.0,0.0044039]
[1726065292861,1.35687174,55879.0,55878.0,0.0044039]
[1726065293095,1.72905763,55879.0,55878.0,0.0044039]
[1726065293337,1.37114163,55879.0,55878.0,0.0044039]
[1726065293851,1.39921139,55879.0,55878.0,0.0044039]
[1726065294079,1.04129539,55879.0,55878.0,0.0044039]
[1726065294315,0.23001359,55879.0,55878.0,0.0044039]
[1726065294573,0.58792959,55879.0,55878.0,0.0044039]
[1726065294833,0.05105559,55879.0,55878.0,0.5613649]
[1726065295077,0.03513794,55879.0,55878.0,0.9422869]
[1726065295309,0.03513794,55879.0,55878.0,1.6939209]
[1726065295796,0.03513794,55879.0,55878.0,1.3359989]
[1726065296015,0.03513794,55879.0,55878.0,0.9780769]
[1726065296244,0.03500786,55879.0,55878.0,1.3359989]
[1726065296463,0.03500786,55879.0,55878.0,0.9780769]
[1726065296915,0.03500786,55879.0,55878.0,1.3359989]
[1726065297138,0.06307436,55879.0,55878.0,1.3359989]
[1726065297356,0.06307436,55879.0,55878.0,1.6939209]
[1726065297841,0.06307436,55879.0,55878.0,2.45341245]
[1726065297842,0.05682318,55879.0,55878.0,2.45341245]
[1726065298078,0.00953294,55897.0,55896.0,1.506817]
[1726065298286,0.01131797,55897.0,55896.0,0.6123]
[1726065298528,0.01131797,55897.0,55896.0,0.3939]
[1726065298956,0.00706818,55897.0,55896.0,0.595803]
[1726065299171,0.00706818,55897.0,55896.0,1.311417]
[1726065299410,0.000817,55897.0,55896.0,1.669224]
[1726065299624,0.000817,55897.0,55896.0,1.866724]
[1726065300058,0.000817,55897.0,55896.0,1.902514]
[1726065300295,0.000817,55897.0,55896.0,2.260321]
[1726065300526,0.01128165,55914.0,55901.0,0.03]
[1726065300732,0.13158166,55919.0,55896.0,1.34426772]
[1726065300733,0.00706718,55920.0,55915.0,0.023]
[1726065301013,0.00706718,55920.0,55914.0,0.63239]
[1726065301014,0.00871594,55917.0,55916.0,0.44639]
[1726065301227,0.357754,55905.0,55900.0,0.4106]
[1726065301464,0.00447026,55919.0,55900.0,0.947271]
[1726065301465,0.00625118,55901.0,55900.0,0.947271]
[1726065301941,0.00871594,55901.0,55900.0,0.4106]
[1726065302194,0.0044719,55908.0,55894.0,0.4011]
[1726065302195,0.18762194,55895.0,55894.0,0.4011]
[1726065302435,0.00871594,55895.0,55894.0,0.4011]
[1726065302879,0.00871594,55895.0,55894.0,0.58001]
[1726065303125,0.00625118,55897.0,55894.0,0.4011]
[1726065303352,0.14323055,55904.0,55898.0,0.023]
[1726065303353,0.08767375,55904.0,55898.0,0.023]
[1726065303607,0.13338138,55907.0,55902.0,0.559652]
[1726065303608,0.00625118,55903.0,55902.0,0.559652]
[1726065303834,0.00625118,55907.0,55906.0,0.178871]
[1726065304065,0.00625118,55906.0,55905.0,0.559623]
[1726065304510,0.00625118,55906.0,55905.0,0.917372]
[1726065304511,0.03430295,55906.0,55905.0,0.917372]
[1726065304751,0.03430295,55906.0,55905.0,0.595413]
[1726065304981,0.03430295,55906.0,55905.0,0.953162]
[1726065305201,0.03430295,55906.0,55905.0,0.595413]
[1726065305484,0.02079864,55906.0,55905.0,1.67718172]
[1726065305701,0.02079864,55906.0,55905.0,2.03493072]
[1726065305939,0.01669684,55906.0,55905.0,2.17174774]
[1726065306638,0.000816,55920.0,55919.0,1.3176]
[1726065306866,0.000816,55920.0,55919.0,1.69826]
[1726065307603,0.000816,55920.0,55919.0,2.03453072]
[1726065308117,0.000816,55939.0,55919.0,2.91609072]
[1726065308313,0.000816,55939.0,55916.0,0.28498666]
[1726065308314,0.000816,55939.0,55930.0,2.03421072]
[1726065308526,0.000816,55939.0,55930.0,2.91359972]
[1726065308747,0.000816,55939.0,55930.0,2.55601072]
[1726065308959,0.000816,55939.0,55930.0,2.27102406]
[1726065309414,0.000816,55939.0,55930.0,2.55601072]
[1726065309624,0.000816,55939.0,55930.0,2.68835507]
[1726065310073,0.000816,55939.0,55930.0,2.68857004]
[1726065310516,0.000816,55939.0,55930.0,2.40358338]
[1726065310741,0.000816,55939.0,55930.0,1.80936597]
[1726065310966,0.000816,55939.0,55930.0,1.809151]
[1726065311224,0.000816,55939.0,55930.0,1.83289982]
[1726065311680,0.000816,55939.0,55930.0,2.24355139]
[1726065311896,0.000816,55939.0,55930.0,2.52853805]
[1726065312120,0.000816,55939.0,55930.0,2.7277076]
[1726065312343,0.000816,55939.0,55930.0,1.832151]
[1726065312595,0.01318861,55938.0,55930.0,1.337762]
[1726065313464,0.01318861,55937.0,55930.0,1.337762]
[1726065313688,0.00260103,55939.0,55930.0,1.367762]
[1726065313689,0.000816,55939.0,55930.0,1.367762]
[1726065313963,0.000816,55939.0,55930.0,1.748351]
[1726065314192,0.00625118,55937.0,55930.0,1.360762]
[1726065314605,0.00625118,55937.0,55930.0,1.718351]
[1726065314823,0.03130775,55931.0,55930.0,1.4968382]
[1726065315053,0.03130775,55931.0,55930.0,1.360762]
[1726065315301,0.03130775,55931.0,55930.0,1.390762]
[1726065315538,0.03130775,55931.0,55930.0,1.74856597]
[1726065315756,0.03130775,55931.0,55930.0,1.718351]
[1726065316224,0.03130775,55931.0,55930.0,2.28210955]
[1726065316488,0.03130775,55931.0,55930.0,2.7954076]
[1726065317144,0.03212375,55931.0,55930.0,2.7954076]
[1726065317560,0.03212375,55931.0,55930.0,2.79562257]
[1726065317783,0.03212375,55931.0,55930.0,2.33446636]
[1726065318012,0.02885185,55931.0,55930.0,2.61945302]
[1726065318241,0.03223225,55931.0,55930.0,2.61945302]
[1726065318473,0.03223225,55931.0,55930.0,1.92359982]
[1726065318688,0.03223225,55931.0,55930.0,1.95359982]
[1726065318925,0.03223225,55931.0,55930.0,2.7954076]
[1726065319993,0.03223225,55931.0,55930.0,3.1529966]
[1726065320218,0.0041964,55931.0,55930.0,3.1529966]
[1726065320956,0.000816,55939.0,55934.0,2.10220339]
[1726065321200,0.000816,55939.0,55938.0,1.52979505]
[1726065321418,0.000816,55939.0,55938.0,2.24487105]
[1726065321682,0.0021166,55942.0,55941.0,1.38691739]
[1726065321683,6e-07,55942.0,55941.0,1.38691739]
[1726065321918,0.0031844,55946.0,55945.0,1.22114039]
[1726065322145,4e-07,55946.0,55945.0,2.82728194]
[1726065322375,4e-07,55946.0,55945.0,3.18477494]
[1726065322851,4e-07,55946.0,55945.0,2.7547756]
[1726065323548,4e-07,55946.0,55945.0,1.88306382]
[1726065323995,4e-07,55946.0,55945.0,1.69016382]
[1726065326355,2.3e-07,55953.0,55952.0,3.33243352]
[1726065326577,0.00010163,55962.0,55961.0,2.60424705]
[1726065326823,6.3e-07,55962.0,55961.0,2.96163805]
[1726065327055,2.3e-07,55968.0,55967.0,2.45814239]
[1726065327280,0.0029336,55987.0,55975.0,1.22235439]
[1726065327281,0.0027258,55982.0,55975.0,1.22235439]
[1726065327515,0.02882797,55977.0,55975.0,2.34418049]
[1726065327740,0.02882797,55977.0,55975.0,3.08178449]
[1726065328002,0.02882797,55977.0,55975.0,2.72448249]
[1726065328214,0.02882797,55977.0,55975.0,1.83543126]
[1726065328463,0.02882797,55977.0,55975.0,1.689447]
[1726065328937,0.02882797,55977.0,55975.0,0.952045]
[1726065329172,0.02882952,55976.0,55975.0,0.952045]
[1726065329622,0.02882952,55976.0,55975.0,0.594743]
[1726065330071,0.02882952,55976.0,55975.0,0.952045]
[1726065330300,0.02882952,55976.0,55975.0,0.03579]
[1726065330543,1.16506013,55976.0,55975.0,0.03579]
[1726065330771,0.60110461,55976.0,55975.0,0.03579]
[1726065331005,0.60110461,55976.0,55975.0,0.214441]
[1726065331006,0.20630461,55976.0,55975.0,0.214441]
[1726065331453,0.20630461,55976.0,55975.0,0.929045]
[1726065331454,0.193116,55976.0,55975.0,0.929045]
[1726065331680,0.20630461,55976.0,55975.0,0.214441]
[1726065331930,0.20630461,55976.0,55962.0,0.40594882]
[1726065331931,0.00693743,55975.0,55971.0,0.357324]
[1726065332165,0.01318861,55975.0,55974.0,0.535962]
[1726065332428,0.01318861,55975.0,55972.0,0.2373904]
[1726065332676,0.20369967,55976.0,55961.0,0.4795]
[1726065332677,0.01318861,55971.0,55961.0,0.4795]
[1726065332910,0.01058529,55974.0,55962.0,0.02374882]
[1726065333181,0.000816,55976.0,55975.0,0.535953]
[1726065333405,0.00706718,55976.0,55975.0,0.178651]
[1726065333631,0.00706718,55976.0,55971.0,0.357322]
[1726065333632,0.01400461,55976.0,55973.0,0.178655]
[1726065333859,0.01318861,55975.0,55972.0,0.023]
[1726065334096,0.19184061,55975.0,55967.0,0.357353]
[1726065334352,0.000816,55976.0,55963.0,0.4117]
[1726065334353,0.178664,55971.0,55966.0,0.178678]
[1726065334573,0.744168,55970.0,55966.0,0.201679]
[1726065334808,0.5655,55970.0,55969.0,0.17867]
[1726065335019,0.5655,55970.0,55966.0,0.380356]
[1726065335020,0.01318861,55972.0,55971.0,0.178663]
[1726065335239,0.000816,55976.0,55973.0,0.178657]
[1726065335240,0.01497364,55974.0,55973.0,0.178657]
[1726065335470,0.00693743,55974.0,55973.0,0.178657]
[1726065335709,0.02801801,55974.0,55973.0,0.535972]
[1726065335956,0.03858364,55974.0,55973.0,1.35041339]
[1726065336195,0.02801801,55974.0,55973.0,1.89266231]
[1726065336417,0.000816,55976.0,55973.0,1.89266231]
[1726065336418,0.000816,55976.0,55975.0,0.893255]
[1726065336642,0.000816,55976.0,55975.0,0.916255]
[1726065336884,0.000816,55976.0,55975.0,1.65308647]
[1726065337104,0.000816,55976.0,55975.0,2.2049404]
[1726065337552,0.000816,55976.0,55975.0,2.1749404]
[1726065337761,0.000816,55976.0,55975.0,2.2049404]
[1726065338218,0.000816,55976.0,55975.0,3.1290424]
[1726065338219,1e-06,55976.0,55975.0,3.1290424]
[1726065338437,0.02882797,55977.0,55976.0,1.70763839]
[1726065338689,0.02882797,55977.0,55976.0,2.50386899]
[1726065339162,9.7e-07,55977.0,55976.0,2.50386899]
[1726065339392,9.7e-07,55977.0,55976.0,2.86137896]
[1726065339852,9.7e-07,55977.0,55976.0,1.45218]
[1726065340065,9.7e-07,55977.0,55976.0,2.10586954]
[1726065340303,9.7e-07,55977.0,55976.0,2.11303254]
[1726065340530,9.7e-07,55977.0,55976.0,2.47032754]
[1726065341244,9.7e-07,55977.0,55976.0,2.11303254]
[1726065341460,9.7e-07,55977.0,55976.0,1.630827]
[1726065342847,9.7e-07,55977.0,55976.0,2.067607]
[1726065343080,9.7e-07,55977.0,55976.0,2.264407]
[1726065344295,0.00081597,55977.0,55976.0,1.687312]
[1726065344984,0.00081597,55977.0,55976.0,0.929117]
[1726065345415,0.00081597,55977.0,55976.0,0.571822]
[1726065345664,0.03,55976.0,55975.0,0.03588]
[1726065345938,0.2273,55976.0,55975.0,0.03588]
[1726065346154,0.23717541,55976.0,55975.0,0.03588]
[1726065346615,0.23717541,55976.0,55968.0,0.358977]
[1726065346616,0.002,55969.0,55968.0,0.00163]
[1726065347060,0.04182242,55969.0,55968.0,0.00163]
[1726065347303,0.2146,55969.0,55968.0,0.00163]
[1726065347523,0.2146,55969.0,55968.0,0.03751]
[1726065347524,0.22442032,55969.0,55968.0,0.03751]
[1726065347750,0.22242032,55969.0,55968.0,0.03751]
[1726065348224,0.00982032,55969.0,55968.0,1.335377]
[1726065348695,0.00081597,55977.0,55976.0,0.178647]
[1726065348924,0.00081597,55977.0,55976.0,0.201647]
[1726065349145,0.01145276,55977.0,55976.0,0.558942]
[1726065349372,0.00081597,55977.0,55976.0,0.952117]
[1726065349877,0.02883049,55977.0,55976.0,0.952117]
[1726065350106,0.02883049,55977.0,55976.0,0.594822]
[1726065350339,0.02883049,55977.0,55976.0,0.03588]
[1726065350340,0.74887755,55977.0,55976.0,0.03588]
[1726065350562,0.80887755,55977.0,55976.0,0.03588]
[1726065350776,0.81955109,55977.0,55976.0,0.03588]
[1726065350991,1.55668409,55977.0,55976.0,0.03588]
[1726065351226,1.52866957,55977.0,55976.0,0.03588]
[1726065351478,0.002,55970.0,55968.0,0.00163]
[1726065351700,0.06,55972.0,55968.0,0.00163]
[1726065351701,0.062,55972.0,55968.0,0.00163]
[1726065351949,0.062,55972.0,55968.0,0.57353]
[1726065351950,0.01067222,55969.0,55968.0,0.57353]
[1726065352178,0.03,55969.0,55968.0,0.216183]
[1726065352460,0.03,55969.0,55968.0,0.03751]
[1726065352688,0.03,55969.0,55968.0,0.216183]
[1726065353134,0.032,55972.0,55971.0,0.214543]
[1726065353362,0.032,55972.0,55971.0,0.03588]
[1726065353592,0.032,55972.0,55971.0,0.214543]
[1726065353593,0.04259806,55972.0,55971.0,0.214543]
[1726065353806,0.04259806,55972.0,55971.0,0.237543]
[1726065353807,0.01059806,55972.0,55971.0,0.237543]
[1726065354051,0.03,55974.0,55973.0,0.535972]
[1726065354267,0.03,55974.0,55973.0,0.594852]
[1726065354485,0.0580173,55974.0,55973.0,0.594852]
[1726065354718,0.0280173,55974.0,55973.0,0.952167]
[1726065355183,0.0580173,55974.0,55973.0,0.214537]
[1726065356136,0.0280173,55974.0,55973.0,0.214537]
[1726065356351,0.0280173,55974.0,55973.0,0.952167]
[1726065356563,0.0280173,55974.0,55973.0,1.309482]
[1726065357001,0.0280173,55974.0,55973.0,0.594852]
[1726065357214,0.0280173,55974.0,55973.0,0.05888]
[1726065357439,0.0280173,55974.0,55973.0,0.237537]
[1726065357718,0.0280173,55974.0,55973.0,0.594852]
[1726065357951,0.0280173,55974.0,55973.0,0.952167]
[1726065358178,0.0280173,55974.0,55973.0,1.309482]
[1726065358868,0.0280173,55974.0,55973.0,1.720782]
[1726065359087,0.0280173,55974.0,55973.0,2.078097]
[1726065359337,0.0280173,55974.0,55973.0,2.55629276]
[1726065360260,0.0280173,55974.0,55973.0,2.272397]
[1726065360495,0.0280173,55974.0,55973.0,0.952167]
[1726065360709,0.000815,55976.0,55975.0,0.571833]
[1726065360922,0.000815,55976.0,55975.0,0.929135]
[1726065361171,0.000815,55976.0,55975.0,0.237531]
[1726065361401,0.282715,55976.0,55975.0,0.03588]
[1726065361614,0.282715,55976.0,55975.0,0.214531]
[1726065361829,0.29227751,55976.0,55974.0,0.03588]
[1726065362052,0.20227751,55976.0,55974.0,0.03588]
[1726065362278,0.20227751,55976.0,55970.0,0.357329]
[1726065362279,0.01037751,55976.0,55975.0,0.571833]
[1726065362495,0.01037751,55976.0,55975.0,1.325735]
[1726065362711,0.01037751,55976.0,55975.0,1.706037]
[1726065362935,0.000815,55976.0,55975.0,0.571833]
[1726065363423,0.000815,55976.0,55975.0,1.3793529]
[1726065363656,0.000815,55976.0,55975.0,2.60205066]
[1726065363898,0.000815,55976.0,55975.0,2.225239]
[1726065364388,0.000815,55976.0,55975.0,2.88943676]
[1726065364875,0.000815,55976.0,55975.0,3.24673876]
[1726065365227,0.00081597,55977.0,55975.0,3.24673876]
[1726065365228,0.00081597,55977.0,55976.0,0.178647]
[1726065365232,7.7e-07,55982.0,55976.0,0.5832]
[1726065365457,0.000815,56005.0,55997.0,0.951782]